bitfinex/quotes_ETHUSD_20220218
["timestamp","ask_amount","ask_price","bid_price","bid_amount"]
[1645166369530,0.65318412,2904.0,2903.9,0.03513211]
[1645166369726,0.6610838,2904.1,2903.9,0.03513211]
[1645166370172,0.65318412,2904.0,2903.9,0.03513211]
[1645166371765,0.66108383,2904.1,2903.8,0.16738475]
[1645166371967,1.01555165,2904.1,2903.9,1.10724432]
[1645166372176,0.3543685,2904.0,2903.9,1.10724432]
[1645166372370,0.3543685,2904.0,2903.9,1.33584432]
[1645166373372,0.00789971,2904.1,2903.9,1.33584432]
[1645166373568,0.0029811,2904.1,2904.0,1.10724432]
[1645166373769,0.35436909,2904.4,2904.0,1.10724432]
[1645166373973,0.3592877,2904.3,2904.0,4.60724432]
[1645166374169,0.00491861,2904.7,2904.1,6.10603056]
[1645166374377,4.44006823,2905.5,2904.1,6.10603056]
[1645166374378,0.00491861,2904.3,2904.2,3.999]
[1645166374570,0.00491861,2904.8,2904.2,4.01396893]
[1645166374827,0.00491861,2904.8,2904.3,1.14065945]
[1645166375018,0.00491861,2904.8,2904.4,3.5]
[1645166376459,0.65318412,2905.1,2904.4,3.5]
[1645166376625,0.00298292,2904.7,2904.4,3.5]
[1645166377428,0.65318412,2905.1,2904.4,3.5]
[1645166377625,0.00491861,2905.0,2904.4,3.5]
[1645166377825,0.00277126,2904.7,2904.4,3.5]
[1645166378026,0.00277126,2904.7,2904.3,2.37865945]
[1645166378226,0.00277126,2904.7,2904.4,3.5]
[1645166378426,0.12978987,2905.0,2904.4,3.5]
[1645166378676,0.65318412,2905.1,2904.4,3.5]
[1645166378878,0.65318412,2905.1,2904.3,2.37865945]
[1645166379077,0.65318412,2905.1,2904.3,2.3694279]
[1645166379275,0.65318412,2905.1,2904.4,3.5]
[1645166379477,0.65318412,2905.1,2904.3,2.3694279]
[1645166379679,0.65318412,2905.1,2905.0,1.01098295]
[1645166380277,1.17091216,2905.3,2905.0,1.01098295]
[1645166380478,1.17091216,2905.3,2904.3,1.238]
[1645166380686,1.17091216,2905.3,2904.4,3.5]
[1645166380884,1.17091216,2905.3,2904.3,1.238]
[1645166381180,0.65727067,2905.1,2904.4,3.5]
[1645166381383,0.00115893,2905.0,2904.4,3.5]
[1645166381581,0.00115893,2905.0,2904.9,1.11344781]
[1645166382323,0.65727067,2905.1,2904.9,1.11344781]
[1645166382324,0.65727067,2905.2,2904.9,1.11344781]
[1645166382524,0.66026025,2905.1,2904.3,1.238]
[1645166382728,0.65727067,2905.0,2904.3,1.238]
[1645166383027,0.65727067,2904.9,2904.3,1.238]
[1645166383226,0.65727067,2904.8,2904.3,1.238]
[1645166383424,0.65727067,2904.8,2904.2,0.01496893]
[1645166383626,0.65727067,2904.8,2904.3,0.91965917]
[1645166383840,0.96031055,2904.8,2904.3,0.91965917]
[1645166384225,0.66031055,2904.8,2904.3,0.91965917]
[1645166384426,0.861081,2904.7,2904.3,0.91965917]
[1645166386870,0.00303984,2904.8,2904.3,0.91965917]
[1645166387071,0.06426572,2904.7,2904.3,0.91965917]
[1645166389173,0.06426572,2904.7,2904.4,3.5]
[1645166389377,0.06426572,2904.7,2904.3,1.80995917]
[1645166389574,0.05426572,2904.7,2904.3,1.80995917]
[1645166390627,0.05426572,2904.7,2904.3,0.91965917]
[1645166390927,0.05426572,2904.7,2904.3,0.52236642]
[1645166394275,0.30796537,2904.6,2904.3,0.52236642]
[1645166394491,1.0330882,2905.1,2904.3,0.52236642]
[1645166394492,0.76405511,2906.1,2904.5,10.01215394]
[1645166394683,4.88812515,2906.7,2904.5,10.01215394]
[1645166394684,0.6567695,2906.4,2905.9,0.01292651]
[1645166394887,0.76405511,2907.2,2905.9,0.01292651]
[1645166394888,0.37578242,2907.2,2906.3,5.01269709]
[1645166395081,1.31353901,2907.4,2907.1,0.01255464]
[1645166395082,0.65653421,2907.4,2907.1,0.01255464]
[1645166395282,0.65653421,2908.0,2907.1,0.96155464]
[1645166395489,0.32578242,2908.3,2907.2,1.50838394]
[1645166395684,6.22893901,2908.6,2907.4,6.242]
[1645166395685,4.9154,2908.6,2907.4,6.242]
[1645166395883,1.31353901,2908.7,2907.5,0.499]
[1645166396083,1.31353901,2908.8,2907.6,6.242]
[1645166396280,1.31353901,2908.8,2907.7,0.499]
[1645166396482,5.04694328,2909.1,2908.0,1.03846144]
[1645166396483,1.31353901,2909.0,2908.0,1.03846144]
[1645166396684,1.31353901,2909.2,2908.1,0.499]
[1645166396882,0.08674836,2908.9,2908.1,0.499]
[1645166397322,1.31353901,2909.2,2908.1,0.499]
[1645166397525,1.31353901,2909.0,2908.1,0.499]
[1645166397742,0.74219728,2909.0,2908.1,0.499]
[1645166398128,0.08674836,2909.1,2908.1,0.499]
[1645166398323,0.95948235,2908.5,2908.1,0.499]
[1645166398527,0.02401,2908.4,2907.8,1.09636682]
[1645166398823,0.02401,2908.4,2907.7,0.499]
[1645166399021,1.25948235,2908.5,2907.7,0.499]
[1645166399424,0.00316808,2908.2,2907.7,0.499]
[1645166399622,0.00316808,2908.2,2907.7,1.43961011]
[1645166400023,0.00316808,2908.2,2907.7,0.499]
[1645166400224,1.55948235,2908.5,2907.7,0.499]
[1645166400622,0.00316817,2908.1,2907.7,0.499]
[1645166401067,0.00316817,2908.1,2907.9,0.93065759]
[1645166401475,1.55948235,2908.5,2907.9,0.93065759]
[1645166401773,0.00316814,2908.1,2908.0,0.01858829]
[1645166402774,3.5,2908.4,2908.0,0.01858829]
[1645166403177,0.95948235,2908.5,2908.0,0.01858829]
[1645166403386,0.51221524,2908.5,2908.0,0.01858829]
[1645166404175,0.00317061,2908.4,2908.0,0.01858829]
[1645166404576,0.00317061,2908.4,2908.1,0.98698793]
[1645166405021,0.01268054,2908.8,2908.1,0.98698793]
[1645166405229,3.8,2909.0,2908.1,0.98698793]
[1645166405429,0.00317061,2908.4,2908.1,0.98698793]
[1645166406228,0.3,2908.7,2908.1,0.98698793]
[1645166406430,4.21075836,2909.0,2908.1,0.98698793]
[1645166406629,0.00317061,2908.4,2908.1,0.98698793]
[1645166406930,0.00317061,2908.4,2908.2,0.02748208]
[1645166407434,4.25830692,2909.0,2908.2,0.02748208]
[1645166407435,0.87559774,2908.9,2908.2,0.02748208]
[1645166407632,0.71075836,2909.0,2908.2,0.02748208]
[1645166407832,0.71075836,2909.0,2908.2,0.00556736]
[1645166407833,0.00317058,2908.4,2908.2,0.00556736]
[1645166408032,0.00317058,2908.4,2908.2,3.50556736]
[1645166408674,3.29412286,2909.4,2908.2,3.50556736]
[1645166408871,3.29412286,2909.4,2908.7,0.86953711]
[1645166408872,0.01268041,2908.9,2908.7,0.86953711]
[1645166409275,0.01268041,2908.9,2908.2,3.50556736]
[1645166409574,0.01268041,2908.9,2908.2,0.00556736]
[1645166409978,0.00486955,2909.2,2908.2,0.00556736]
[1645166410179,0.00317042,2908.7,2908.5,0.90016858]
[1645166411186,0.30486955,2909.0,2908.5,0.90016858]
[1645166411377,0.00317039,2908.7,2908.5,0.90016858]
[1645166411979,0.00317039,2908.7,2908.6,3.5]
[1645166412186,0.00317039,2908.7,2908.5,0.90016858]
[1645166412424,0.02028241,2909.4,2908.6,0.499]
[1645166412625,0.00317036,2908.8,2908.6,0.499]
[1645166413530,0.01541286,2909.4,2908.7,0.85952]
[1645166413733,0.00317032,2908.8,2908.6,0.6708]
[1645166414228,0.00317032,2908.8,2908.7,3.5]
[1645166414628,0.04754772,2909.3,2908.6,3.999]
[1645166414828,0.01541286,2909.4,2908.7,4.5]
[1645166415028,0.00317029,2908.9,2908.8,0.499]
[1645166415828,0.01541286,2909.4,2908.8,0.499]
[1645166416075,0.01541286,2909.4,2909.3,1.10956244]
[1645166416275,0.07563816,2909.4,2909.3,1.10956244]
[1645166416771,0.07563816,2909.4,2909.3,1.60856244]
[1645166417276,0.01541286,2909.4,2909.3,1.60856244]
[1645166418779,0.01541286,2909.4,2909.3,5.10856244]
[1645166419178,0.01541286,2909.4,2909.3,1.60856244]
[1645166419581,0.01541286,2909.4,2909.3,5.10856244]
[1645166420020,0.01541286,2909.4,2909.3,1.60856244]
[1645166421023,0.01541286,2909.4,2909.3,5.10856244]
[1645166421622,0.01541286,2909.4,2909.3,1.60856244]
[1645166421822,0.01541286,2909.4,2909.3,2.6498454]
[1645166422023,0.01541286,2909.4,2909.3,1.6498454]
[1645166422222,0.01541286,2909.4,2909.3,2.6498454]
[1645166422428,0.01541286,2909.4,2909.3,1.6498454]
[1645166424086,0.01541286,2909.4,2909.3,5.1498454]
[1645166424474,0.01541286,2909.4,2909.3,6.1498454]
[1645166424674,0.01541286,2909.4,2909.3,2.6498454]
[1645166424876,0.01541286,2909.4,2909.3,1.6498454]
[1645166425076,0.01541286,2909.4,2909.3,2.6498454]
[1645166425481,0.01541286,2909.4,2909.3,1.6498454]
[1645166425679,0.01541286,2909.4,2909.3,2.6498454]
[1645166426178,0.01541286,2909.4,2909.3,1.6498454]
[1645166426376,0.01541286,2909.4,2909.3,2.6498454]
[1645166426584,0.01541286,2909.4,2909.3,1.6498454]
[1645166426777,0.01541286,2909.4,2909.3,2.6498454]
[1645166426981,0.01541286,2909.4,2909.3,1.63570824]
[1645166427178,0.01541286,2909.4,2909.3,2.63570824]
[1645166427424,0.01541286,2909.4,2909.3,1.63570824]
[1645166427623,0.01541286,2909.4,2909.3,2.63570824]
[1645166427824,0.01541286,2909.4,2909.3,1.63570824]
[1645166429727,0.01541286,2909.4,2909.3,2.63570824]
[1645166429939,0.01541286,2909.4,2909.3,1.63570824]
[1645166430926,0.01541286,2909.4,2909.3,1.61492136]
[1645166431170,0.01541286,2909.4,2909.3,1.60856244]
[1645166431372,0.01541286,2909.4,2909.3,5.10856244]
[1645166431677,0.0120787,2909.6,2909.5,0.02299596]
[1645166431873,0.01607794,2909.6,2909.5,0.52199596]
[1645166432071,0.01607794,2909.6,2909.5,1.52199596]
[1645166432476,0.01607794,2909.6,2909.5,0.52199596]
[1645166432683,0.01607794,2909.6,2909.5,1.38118596]
[1645166433778,0.01607794,2909.6,2909.5,4.88118596]
[1645166434184,0.01607794,2909.6,2909.5,5.88118596]
[1645166435025,0.01607794,2909.6,2909.5,6.18118596]
[1645166436739,0.01607794,2909.6,2909.5,1.88218596]
[1645166437031,0.01607794,2909.6,2909.5,1.92073715]
[1645166437232,0.01607794,2909.6,2909.5,4.91973715]
[1645166437430,0.01607794,2909.6,2909.5,5.91973715]
[1645166437831,0.01607794,2909.6,2909.5,5.06054715]
[1645166438231,0.01607794,2909.6,2909.5,5.91973715]
[1645166439286,0.01607794,2909.6,2909.5,26.36973715]
[1645166439678,0.01607794,2909.6,2909.5,6.21973715]
[1645166441685,0.01607794,2909.6,2909.5,6.51973715]
[1645166442087,0.01607794,2909.6,2909.5,6.50053075]
[1645166444329,0.01607794,2909.6,2909.5,3.00053075]
[1645166444534,0.01607794,2909.6,2909.5,5.50053075]
[1645166444731,0.01607794,2909.6,2909.5,6.50053075]
[1645166445728,0.01607794,2909.6,2909.5,6.20053075]
[1645166446171,0.01607794,2909.6,2909.5,2.70053075]
[1645166446976,0.01607794,2909.6,2909.5,6.22110397]
[1645166447182,0.01607794,2909.6,2909.5,1.72110397]
[1645166447380,0.01607794,2909.6,2909.5,6.22110397]
[1645166447677,0.01607794,2909.6,2909.5,5.22110397]
[1645166447878,0.01607794,2909.6,2909.5,6.22110397]
[1645166451721,0.01607794,2909.6,2909.5,6.20053075]
[1645166455171,0.05220934,2910.1,2909.7,0.02140238]
[1645166455376,0.06020782,2910.1,2909.8,1.35817]
[1645166455577,0.06020782,2910.1,2909.9,4.96545292]
[1645166455578,0.00799848,2910.1,2909.9,4.96545292]
[1645166455776,0.00799848,2910.1,2910.0,1.46545292]
[1645166455975,0.00799848,2910.1,2910.0,2.46545292]
[1645166456578,0.00799848,2910.1,2910.0,1.94692354]
[1645166456779,0.00799848,2910.1,2910.0,2.41234606]
[1645166457180,0.00799848,2910.1,2910.0,0.94692354]
[1645166457424,0.00799848,2910.1,2910.0,3.41237127]
[1645166457629,0.00799848,2910.1,2910.0,2.41237127]
[1645166457825,0.00799848,2910.1,2910.0,3.41236294]
[1645166458028,0.00799848,2910.1,2910.0,0.94692354]
[1645166458332,0.00799848,2910.1,2910.0,6.91235128]
[1645166458541,0.00799848,2910.1,2910.0,2.41235128]
[1645166458726,0.00799848,2910.1,2910.0,3.41235128]
[1645166458930,0.00799848,2910.1,2910.0,6.91235128]
[1645166459129,0.00799848,2910.1,2910.0,3.41235128]
[1645166459929,0.00799848,2910.1,2910.0,1.94692354]
[1645166460133,0.00799848,2910.1,2910.0,0.94692354]
[1645166460329,0.00799848,2910.1,2910.0,2.41237936]
[1645166460729,0.00799848,2910.1,2910.0,3.41237936]
[1645166461180,0.00799848,2910.1,2910.0,1.46545582]
[1645166461377,0.00799848,2910.1,2909.7,3.31380238]
[1645166461589,0.00799848,2910.1,2909.8,1.46553179]
[1645166461981,0.00799848,2910.1,2910.0,0.05026931]
[1645166463781,0.00799848,2910.1,2910.0,1.51572057]
[1645166464583,0.00799848,2910.1,2910.0,0.05026931]
[1645166467032,0.00799848,2910.1,2910.0,0.01795125]
[1645166467631,0.00799848,2910.1,2910.0,1.48343737]
[1645166467831,0.00799848,2910.1,2910.0,0.01795125]
[1645166470075,0.00799848,2910.1,2910.0,1.48343634]
[1645166470274,0.00799848,2910.1,2910.0,0.01795125]
[1645166470479,0.05607699,2910.6,2910.0,4.98343634]
[1645166470480,0.02153629,2910.6,2910.0,4.98343634]
[1645166470682,0.01599696,2910.6,2910.1,1.46548509]
[1645166470878,0.01599696,2910.6,2910.2,3.999]
[1645166471077,0.01599696,2910.6,2910.3,1.46548509]
[1645166471275,0.02436606,2910.8,2910.4,0.499]
[1645166471479,0.02436606,2910.8,2910.5,2.46045609]
[1645166471678,0.02436606,2910.8,2910.6,1.96448509]
[1645166472080,0.02436606,2910.8,2910.6,2.96448509]
[1645166472326,0.00194601,2911.5,2910.7,1.46548509]
[1645166472729,0.00194601,2911.5,2910.7,2.46548509]
[1645166472930,1.10064601,2911.6,2910.8,1.46548509]
[1645166473132,1.1841769,2911.9,2910.9,3.5]
[1645166473339,0.04035807,2911.5,2911.0,2.46548509]
[1645166473531,0.04035807,2911.5,2911.1,2.50117037]
[1645166473731,0.04035807,2911.5,2911.1,1.03568528]
[1645166474571,0.04035807,2911.5,2911.2,2.13545513]
[1645166474832,0.0052769,2911.9,2911.3,9.96478882]
[1645166475033,0.0052769,2911.9,2911.4,1.96378882]
[1645166475232,0.02924157,2911.9,2911.4,0.499]
[1645166475630,0.02924157,2911.9,2911.4,0.799]
[1645166476075,0.0052769,2911.9,2911.4,1.65759]
[1645166476277,0.00126146,2911.8,2911.4,1.65759]
[1645166476476,0.00126146,2911.8,2911.4,0.799]
[1645166476880,0.00126146,2911.8,2911.5,1.46469317]
[1645166477077,0.0052769,2911.9,2911.6,0.499]
[1645166477275,0.0052769,2911.9,2911.6,1.34758727]
[1645166477481,0.00126146,2911.7,2911.6,2.34758727]
[1645166478085,0.00126146,2911.7,2911.6,1.34758727]
[1645166478284,0.0052769,2911.9,2911.6,1.34758727]
[1645166478484,0.00126146,2911.8,2911.6,1.34758727]
[1645166479483,0.0052769,2911.9,2911.6,1.34758727]
[1645166480234,0.00309436,2911.8,2911.6,1.34758727]
[1645166480426,0.00309436,2911.8,2911.6,0.84858727]
[1645166480829,0.0052769,2911.9,2911.6,0.84858727]
[1645166481037,0.00309436,2911.8,2911.6,0.84858727]
[1645166481829,0.00309436,2911.8,2911.7,0.03715449]
[1645166482028,0.0052769,2911.9,2911.7,0.03715449]
[1645166482230,0.00117808,2911.8,2911.7,0.03715449]
[1645166483133,0.0052769,2911.9,2911.7,0.03715449]
[1645166483335,0.00645498,2911.9,2911.7,0.03715449]
[1645166484389,0.0052769,2911.9,2911.7,0.03715449]
[1645166484592,0.00837952,2911.9,2911.7,0.03715449]
[1645166485490,0.0052769,2911.9,2911.7,0.03715449]
[1645166485891,0.00837952,2911.9,2911.7,0.03715449]
[1645166486694,0.0052769,2911.9,2911.7,0.03715449]
[1645166486893,0.00837952,2911.9,2911.7,0.04928194]
[1645166487932,0.0052769,2911.9,2911.7,0.04928194]
[1645166488131,0.00646064,2911.9,2911.7,0.04928194]
[1645166489132,0.0052769,2911.9,2911.7,0.04928194]
[1645166489435,0.0082622,2911.9,2911.7,0.04928194]
[1645166490239,0.4702793,2913.1,2911.8,30.68916663]
[1645166490440,0.0443753,2913.3,2912.4,0.15266445]
[1645166490639,0.0443753,2913.3,2912.6,20.15]
[1645166490838,0.0443753,2913.3,2912.5,6.9126]
[1645166490839,0.0443753,2913.3,2912.9,26.392]
[1645166491078,0.0443753,2913.3,2913.0,20.8206]
[1645166491286,7.53e-05,2913.3,2913.1,26.57548585]
[1645166491476,7.53e-05,2913.3,2913.2,0.6706]
[1645166491679,7.53e-05,2913.3,2913.2,20.8206]
[1645166491877,7.53e-05,2913.3,2913.2,22.1206]
[1645166492275,7.53e-05,2913.3,2913.2,1.9706]
[1645166493081,0.01693372,2913.8,2913.3,2.5]
[1645166493380,0.01693372,2913.8,2913.4,1.35707]
[1645166493580,0.01693372,2913.8,2913.4,1.65707]
[1645166493784,0.01693372,2913.8,2913.5,1.09296731]
[1645166494080,1.1899837,2914.6,2913.6,0.499]
[1645166494481,0.0073837,2914.6,2913.6,0.499]
[1645166494680,0.0073837,2914.6,2913.6,1.499]
[1645166494932,0.0073837,2914.6,2913.6,0.499]
[1645166495128,0.0073837,2914.6,2913.6,1.499]
[1645166495728,0.0073837,2914.6,2913.6,0.499]
[1645166495932,0.0073837,2914.6,2913.6,1.499]
[1645166496128,0.0073837,2914.6,2913.6,0.499]
[1645166496333,0.0073837,2914.6,2913.6,1.499]
[1645166496733,0.00121344,2913.9,2913.6,0.499]
[1645166496973,0.01502505,2913.8,2913.6,1.53467939]
[1645166497134,0.01502505,2913.8,2913.6,0.53467939]
[1645166497437,0.01819883,2914.4,2913.8,0.85783]
[1645166497634,0.0073837,2914.6,2913.9,0.499]
[1645166497840,0.0477502,2914.3,2913.9,0.499]
[1645166498234,0.0477502,2914.3,2914.0,1.03948076]
[1645166498437,0.0477502,2914.3,2914.1,0.499]
[1645166498678,0.0073837,2914.6,2914.1,0.499]
[1645166499882,0.0073837,2914.6,2914.5,0.87455863]
[1645166500083,0.0073837,2914.6,2913.9,0.499]
[1645166500983,5.0073837,2914.6,2913.6,0.03567939]
[1645166501182,1.13166298,2914.2,2913.6,0.03567939]
[1645166501981,1.13166298,2914.2,2913.5,0.99057215]
[1645166502633,0.00318368,2914.0,2913.5,0.99057215]
[1645166503734,0.00318364,2914.0,2913.5,0.99057215]
[1645166504834,1.05769515,2914.2,2913.5,0.99057215]
[1645166505133,0.00318364,2914.0,2913.5,0.99057215]
[1645166505935,0.04774969,2914.3,2913.5,0.99057215]
[1645166506178,0.00318364,2914.0,2913.5,0.99057215]
[1645166507003,0.00318364,2914.0,2913.7,0.01896822]
[1645166507180,1.07901871,2914.3,2913.7,0.01896822]
[1645166507381,0.00318364,2914.0,2913.7,0.01896822]
[1645166508381,5.62306639,2914.6,2913.7,0.01896822]
[1645166508583,0.00318368,2914.0,2913.7,0.01896822]
[1645166509681,1.0226057,2914.1,2913.7,0.01896822]
[1645166509930,0.00318368,2914.0,2913.7,0.01896822]
[1645166510730,5.51824542,2914.6,2913.7,0.01896822]
[1645166510931,0.00318368,2914.0,2913.7,0.01896822]
[1645166511930,0.92686271,2914.3,2913.8,0.0188358]
[1645166512130,0.00318368,2914.0,2913.8,0.0188358]
[1645166513234,1.22686271,2914.3,2913.8,0.0188358]
[1645166513437,0.00318369,2914.0,2913.8,0.0188358]
[1645166514294,0.04774817,2914.5,2913.8,0.0188358]
[1645166514583,0.04774817,2914.5,2914.0,1.02454496]
[1645166515184,0.04774817,2914.5,2914.0,1.02170352]
[1645166515587,5.3073837,2914.6,2914.0,1.02170352]
[1645166515889,0.00318345,2914.4,2914.0,1.02170352]
[1645166516894,0.0073837,2914.6,2914.0,1.02170352]
[1645166517096,0.00318349,2914.3,2914.0,1.02170352]
[1645166517936,0.0073837,2914.6,2914.0,1.02170352]
[1645166518236,0.00318352,2914.3,2914.0,1.02170352]
[1645166518836,0.00318352,2914.3,2913.9,0.04139776]
[1645166519236,0.0073837,2914.6,2913.9,0.04139776]
[1645166519442,0.00318355,2914.2,2913.9,0.04139776]
[1645166520038,0.00318355,2914.2,2914.0,1.10360612]
[1645166520437,0.0073837,2914.6,2914.0,1.10360612]
[1645166520637,0.00318355,2914.2,2914.0,1.10360612]
[1645166520839,0.00318355,2914.2,2913.9,0.04139776]
[1645166521578,0.0073837,2914.6,2913.9,0.04139776]
[1645166521579,5.0,2914.4,2913.9,0.04139776]
[1645166521775,5.6,2914.4,2914.2,0.0206773]
[1645166521983,1.00577928,2914.3,2914.2,0.0206773]
[1645166524839,6.00577928,2914.3,2914.2,0.0206773]
[1645166525035,1.00577928,2914.3,2914.2,0.0206773]
[1645166525234,2.00577928,2914.3,2914.2,0.0206773]
[1645166525637,1.00577928,2914.3,2914.2,0.0206773]
[1645166525840,2.00577928,2914.3,2914.2,0.0206773]
[1645166526042,1.00577928,2914.3,2914.2,0.0206773]
[1645166526837,2.00577928,2914.3,2914.2,0.0206773]
[1645166527036,2.00577928,2914.3,2914.2,0.02038936]
[1645166527347,2.00577928,2914.3,2914.2,0.01187426]
[1645166527348,9.37282294,2914.3,2914.2,0.01187426]
[1645166527640,10.50577928,2914.3,2914.2,0.01187426]
[1645166527838,11.37008919,2914.3,2914.2,0.01187426]
[1645166528039,11.37008919,2914.3,2914.2,7.426e-05]
[1645166528342,20.15,2914.1,2912.9,0.00318782]
[1645166528581,0.85854,2913.6,2912.9,0.00318782]
[1645166528777,1.06855,2913.8,2912.9,0.00318782]
[1645166528778,1.166,2913.7,2912.9,0.00318782]
[1645166528983,1.166,2913.7,2912.4,0.14007667]
[1645166528984,0.60479687,2913.5,2912.4,0.14007667]
[1645166529179,0.60479687,2913.5,2912.9,0.00318751]
[1645166529180,0.6,2913.5,2912.9,0.00318751]
[1645166529380,0.00479687,2913.4,2912.9,0.00318751]
[1645166529682,0.30479687,2913.4,2912.9,0.87128108]
[1645166529885,0.00479687,2913.4,2912.9,0.87128108]
[1645166530082,0.00479687,2913.4,2912.4,0.14007667]
[1645166530083,5.30479687,2913.4,2912.4,0.14007667]
[1645166530283,0.30479687,2913.4,2912.9,0.00318736]
[1645166530682,0.00479687,2913.4,2912.9,0.00318736]
[1645166530881,0.3,2913.4,2912.9,0.00318736]
[1645166531281,0.3,2913.4,2912.5,1.4640092]
[1645166531483,3.5,2913.5,2912.9,0.00318736]
[1645166531684,1.30479687,2913.6,2912.9,0.00318736]
[1645166531685,1.30479687,2913.6,2913.0,0.91754412]
[1645166531882,0.3,2913.5,2913.0,0.91754412]
[1645166532329,1.60479687,2913.6,2913.0,0.91754412]
[1645166532541,3.5,2913.5,2913.0,0.91754412]
[1645166532735,0.60479687,2913.6,2913.0,0.91754412]
[1645166533136,0.30479687,2913.6,2913.0,0.91754412]
[1645166534538,0.00479687,2913.6,2913.0,0.91754412]
[1645166534938,2.36945431,2913.7,2913.0,0.91754412]
[1645166536380,3.22792431,2913.7,2913.0,0.91754412]
[1645166536782,2.33291251,2913.7,2913.0,0.91754412]
[1645166537789,1.47444251,2913.7,2913.0,0.91754412]
[1645166537984,0.6,2913.7,2913.0,0.91754412]
[1645166538185,0.3,2913.7,2913.0,0.91754412]
[1645166538387,1.6803301,2913.8,2913.5,1.15336872]
[1645166538388,0.00479687,2913.8,2913.5,1.15336872]
[1645166538612,0.00479687,2913.8,2913.1,3.999]
[1645166538786,0.0445734,2913.9,2913.2,1.46375907]
[1645166538993,0.0445734,2913.9,2913.1,0.499]
[1645166539285,0.0445734,2913.9,2913.2,1.46375814]
[1645166539487,0.0445734,2913.9,2913.2,1.63535814]
[1645166539689,2.06118019,2914.0,2913.3,1.06108466]
[1645166539937,2.06415166,2914.0,2913.3,1.06108466]
[1645166540339,0.86964564,2913.9,2913.3,1.06108466]
[1645166540534,0.00479687,2913.8,2913.3,1.06108466]
[1645166541336,0.87741398,2914.0,2913.3,1.06108466]
[1645166541540,0.00776834,2914.0,2913.3,1.06108466]
[1645166541741,0.00297147,2914.0,2913.3,1.06108466]
[1645166541937,0.00776834,2914.0,2913.4,3.5]
[1645166542139,0.00479687,2914.0,2913.4,3.5]
[1645166542337,0.00776838,2914.0,2913.4,3.5]
[1645166542541,0.00776838,2914.0,2913.4,0.499]
[1645166542741,0.87741402,2914.0,2913.4,0.499]
[1645166542958,0.87741402,2914.0,2913.5,0.1716]
[1645166542959,0.00479687,2913.9,2913.5,0.1716]
[1645166543142,0.00297151,2914.0,2913.4,0.6706]
[1645166543342,0.00479687,2914.0,2913.4,0.499]
[1645166543583,0.0077684,2914.0,2913.4,0.499]
[1645166543783,0.0077684,2914.0,2913.4,3.999]
[1645166544024,0.0077684,2914.0,2913.4,0.499]
[1645166544186,0.86964564,2913.9,2913.4,0.499]
[1645166544484,0.86964564,2914.0,2913.4,0.499]
[1645166544685,0.00479687,2913.9,2913.4,0.499]
[1645166545085,0.00479687,2913.9,2913.3,1.06108466]
[1645166545285,0.00479687,2913.9,2913.4,1.46366476]
[1645166545688,0.00479687,2914.1,2913.4,1.46366476]
[1645166545887,0.00297151,2914.0,2913.4,1.46366476]
[1645166546787,0.00479687,2914.1,2913.4,1.46366476]
[1645166546788,1.17444251,2914.1,2913.4,1.46366476]
[1645166546986,0.86964564,2914.0,2913.0,6.5392]
[1645166547188,0.87261717,2914.0,2913.1,1.46368678]
[1645166547435,0.00297153,2914.0,2913.1,1.46368678]
[1645166547834,0.00297153,2914.0,2913.2,3.5]
[1645166548047,1.17444251,2914.1,2913.3,1.46368678]
[1645166548236,0.00297147,2914.0,2913.4,0.86960937]
[1645166548836,0.00297147,2914.0,2913.0,6.5392]
[1645166549041,0.00297147,2914.0,2913.1,1.46367993]
[1645166549265,1.17444251,2914.1,2913.1,1.46367993]
[1645166549442,0.00297145,2914.0,2913.1,1.46367993]
[1645166549640,0.86964564,2913.9,2913.1,1.46367993]
[1645166549837,1.16964564,2913.9,2913.1,1.46367993]
[1645166550438,1.0695499,2913.6,2913.1,1.46367993]
[1645166551484,1.3695499,2913.6,2913.1,1.46367993]
[1645166551683,1.3695499,2913.6,2913.2,1.46367993]
[1645166551888,3.09768554,2913.6,2912.9,0.00297257]
[1645166552083,1.10726074,2913.1,2912.9,0.00297257]
[1645166552885,1.10726074,2913.1,2912.6,1.46394545]
[1645166553085,0.00120462,2912.9,2912.6,1.46394545]
[1645166553990,0.00120462,2912.9,2912.7,1.46394545]
[1645166554185,0.00120462,2912.9,2912.4,0.14007667]
[1645166554385,0.00120462,2912.9,2912.6,0.0029726]
[1645166555249,0.00120462,2912.9,2912.5,1.46400382]
[1645166555448,0.00120462,2912.9,2912.6,0.0029726]
[1645166556449,0.00120462,2912.9,2912.5,1.46400382]
[1645166556649,0.00120462,2912.9,2912.6,0.0029726]
[1645166556858,0.02426733,2912.9,2912.6,0.0029726]
[1645166557655,0.02426733,2912.9,2912.5,1.46400382]
[1645166557956,0.02426733,2912.9,2912.6,0.00297261]
[1645166558155,0.02426733,2912.9,2912.6,0.00208684]
[1645166558790,0.02426733,2912.9,2912.5,1.46400382]
[1645166561699,0.02426733,2912.9,2912.6,0.00318753]
[1645166562333,0.02426733,2912.9,2912.7,1.01196897]
[1645166562537,0.02426733,2912.9,2912.8,1.46400382]
[1645166565743,0.00120462,2912.9,2912.8,1.46400382]
[1645166565940,0.00120462,2912.9,2912.8,2.63560382]
[1645166566795,0.02426733,2912.9,2912.8,2.93560382]
[1645166566994,0.0509814,2913.7,2912.8,2.93560382]
[1645166567202,0.0509814,2913.7,2912.9,2.13460382]
[1645166567401,3.50479687,2914.2,2913.0,1.46400382]
[1645166567599,3.50479687,2914.2,2913.1,0.1716]
[1645166567600,0.00318648,2913.7,2913.1,0.1716]
[1645166567798,0.00318648,2913.7,2913.2,1.46400382]
[1645166568201,0.00318648,2913.7,2913.3,0.98239567]
[1645166568401,0.00318648,2913.7,2913.4,1.46400382]
[1645166568598,0.00479687,2914.5,2913.4,1.46400382]
[1645166568805,0.00318658,2913.7,2913.4,2.76400382]
[1645166569000,0.00318658,2913.7,2913.5,1.46400382]
[1645166569401,0.00318658,2913.7,2913.5,2.46400382]
[1645166569621,0.00318658,2913.7,2913.6,1.46400382]
[1645166569834,3.50479687,2914.4,2913.5,2.46400382]
[1645166570038,0.003091,2913.7,2913.6,1.46400382]
[1645166570935,0.00479687,2914.4,2913.5,1.46400382]
[1645166571136,0.04635762,2914.2,2913.9,0.91749187]
[1645166572144,0.00479687,2914.4,2913.9,0.91749187]
[1645166572548,0.00309071,2914.2,2913.9,0.91749187]
[1645166573341,0.00479687,2914.4,2913.6,0.01456189]
[1645166573595,0.00296347,2914.2,2913.6,0.01456189]
[1645166573843,0.87260911,2914.2,2913.6,0.01456189]
[1645166574000,4.37444251,2914.1,2913.6,0.01456189]
[1645166574193,0.86964564,2914.1,2913.6,0.01456189]
[1645166574392,0.3,2914.1,2913.6,0.01456189]
[1645166574791,1.00479687,2914.2,2913.6,0.01456189]
[1645166574792,1.15041664,2913.7,2913.6,0.01456189]
[1645166575196,1.45041664,2913.7,2913.6,0.01456189]